bitfinex/quotes_SOLUSD_20260223
["timestamp","ask_amount","ask_price","bid_price","bid_amount"]
[1771804801119,0.28432314,82.913,82.85,0.48431039]
[1771804801306,0.48456148,82.91,82.85,0.48431039]
[1771804803718,0.48456148,82.9,82.82,0.48431039]
[1771804804018,0.28432314,82.865,82.812,0.48431039]
[1771804804319,0.48456148,82.86,82.812,0.48431039]
[1771804805808,0.48456148,82.86,82.779,0.48431039]
[1771804806003,0.48456148,82.854,82.779,0.48431039]
[1771804806328,0.48456148,82.85,82.787,0.48431039]
[1771804806524,0.48456148,82.85,82.789,0.48431039]
[1771804806728,0.48456148,82.842,82.793,0.48431039]
[1771804807027,0.48456148,82.83,82.767,0.48431039]
[1771804807909,0.48456148,82.83,82.774,0.14216157]
[1771804808104,0.48456148,82.83,82.781,0.48431039]
[1771804808928,12.07306619,82.829,82.782,12.07992075]
[1771804809129,0.48983268,82.828,82.783,0.49112235]
[1771804812026,0.48983268,82.834,82.791,0.49112235]
[1771804812208,0.48983268,82.833,82.791,0.49112235]
[1771804813623,0.48983268,82.829,82.774,30.20265751]
[1771804813825,0.48983268,82.829,82.776,0.49112235]
[1771804814520,60.35191083,82.848,82.778,0.49112235]
[1771804814521,0.48983268,82.827,82.778,0.49112235]
[1771804816708,0.46860905,82.819,82.771,12.56128549]
[1771804817828,0.46860905,82.809,82.76,0.2]
[1771804818435,0.46860905,82.801,82.76,0.2]
[1771804818625,0.46860905,82.799,82.76,0.2]
[1771804818816,0.46860905,82.797,82.76,12.28313106]
[1771804819015,0.46860905,82.797,82.761,0.47982037]
[1771804819919,0.46860905,82.804,82.761,0.47982037]
[1771804820817,0.46860905,82.804,82.763,0.47982037]
[1771804821526,0.46860905,82.802,82.763,0.47982037]
[1771804823319,0.46860905,82.8,82.765,0.47982037]
[1771804825425,0.46860905,82.8,82.767,0.47982037]
[1771804827642,0.46860905,82.8,82.769,0.47982037]
[1771804830221,0.46860905,82.8,82.771,0.47982037]
[1771804830428,0.46860905,82.813,82.771,0.47982037]
[1771804830723,0.46860905,82.829,82.781,0.47982037]
[1771804832441,0.46860905,82.827,82.783,0.47982037]
[1771804832741,0.46860905,82.842,82.788,0.28432314]
[1771804832929,0.46860905,82.841,82.791,0.47982037]
[1771804834830,12.07146306,82.84,82.792,12.07846168]
[1771804835037,0.46860905,82.839,82.793,0.47982037]
[1771804836454,0.46860905,82.868,82.796,0.28432314]
[1771804836632,0.46860905,82.868,82.801,0.47982037]
[1771804836827,0.28432314,82.861,82.802,42.26951039]
[1771804837028,0.46860905,82.86,82.803,0.47982037]
[1771804838550,0.48510572,82.858,82.81,0.46150613]
[1771804838752,0.48510572,82.886,82.82,0.46150613]
[1771804838935,60.31414108,82.9,82.82,0.46150613]
[1771804838936,0.28432314,82.883,82.82,0.46150613]
[1771804839133,0.48510572,82.88,82.82,0.46150613]
[1771804839329,0.48510572,82.879,82.82,0.46150613]
[1771804840442,0.48510572,82.877,82.822,0.46150613]
[1771804840855,0.48510572,82.869,82.822,0.46150613]
[1771804843547,0.48510572,82.867,82.824,0.46150613]
[1771804845353,0.48510572,82.867,82.818,12.53607124]
[1771804845527,0.48510572,82.86,82.813,0.46150613]
[1771804847637,0.48510572,82.858,82.796,0.28432314]
[1771804847838,0.48510572,82.858,82.801,0.46150613]
[1771804851255,0.48510572,82.856,82.802,12.07700297]
[1771804851450,0.48510572,82.856,82.803,0.46150613]
[1771804853361,0.48510572,82.854,82.805,0.46150613]
[1771804856466,0.48510572,82.852,82.807,0.46150613]
[1771804860344,12.06986035,82.851,82.811,0.46150613]
[1771804860551,12.06919266,82.856,82.811,0.46150613]
[1771804861070,0.48510572,82.883,82.83,0.14216157]
[1771804861264,0.48510572,82.883,82.832,0.28432314]
[1771804861563,0.48510572,82.883,82.828,0.46150613]
[1771804861754,0.48510572,82.883,82.83,0.46150613]
[1771804862164,0.48510572,82.879,82.83,0.46150613]
[1771804862371,0.48510572,82.877,82.832,0.46150613]
[1771804862668,0.28432314,82.872,82.832,0.46150613]
[1771804862964,0.48510572,82.869,82.832,0.46150613]
[1771804864371,0.48510572,82.867,82.832,0.46150613]
[1771804865672,0.48510572,82.865,82.832,0.46150613]
[1771804865974,0.48510572,82.865,82.824,0.46150613]
[1771804867783,12.5530725,82.864,82.826,0.46150613]
[1771804868256,0.48510572,82.863,82.826,0.46150613]
[1771804869077,12.06796678,82.864,82.826,0.46150613]
[1771804870060,64.0175609,82.887,82.83,0.47471346]
[1771804870061,0.46149019,82.863,82.83,0.47471346]
[1771804870659,0.46149019,82.875,82.83,0.47471346]
[1771804872181,0.46149019,82.873,82.832,0.47471346]
[1771804873379,12.06590201,82.879,82.832,0.47471346]
[1771804873961,3.69383402,82.897,82.831,12.07277468]
[1771804873962,12.06498188,82.885,82.84,0.47471346]
[1771804874165,0.46149019,82.884,82.842,0.47471346]
[1771804877576,12.06520034,82.883,82.844,0.49436878]
[1771804877770,3.69383402,82.88,82.833,0.49436878]
[1771804878678,3.69383402,82.88,82.81,0.49436878]
[1771804879578,0.28432314,82.872,82.812,0.49436878]
[1771804879881,0.49025675,82.869,82.812,0.49436878]
[1771804880873,0.49025675,82.86,82.814,0.49436878]
[1771804881689,0.49025675,82.85,82.786,0.49436878]
[1771804882364,0.49025675,82.85,82.787,0.28432314]
[1771804882575,0.49025675,82.85,82.79,0.49436878]
[1771804883112,0.49025675,82.848,82.792,0.49436878]
[1771804886185,12.56069985,82.847,82.797,0.28432314]
[1771804886489,12.0704431,82.847,82.8,0.49436878]
[1771804886874,12.0704431,82.847,82.793,42.27410528]
[1771804886875,12.55992584,82.853,82.801,0.28432314]
[1771804887075,12.06966909,82.853,82.81,0.49436878]
[1771804888295,0.49025675,82.854,82.812,0.49436878]
[1771804890397,0.49025675,82.867,82.814,0.49436878]
[1771804890690,0.49025675,82.867,82.82,0.49436878]
[1771804893105,0.49025675,82.865,82.822,0.49436878]
[1771804894292,0.49025675,82.863,82.821,12.07423238]
[1771804894592,0.49025675,82.859,82.754,5.36086188]
[1771804894892,0.49025675,82.859,82.776,3.69383402]
[1771804895083,0.49025675,82.859,82.777,5.36086188]
[1771804895598,0.49025675,82.859,82.78,3.69383402]
[1771804895993,0.49025675,82.849,82.774,0.14216157]
[1771804896198,0.49025675,82.849,82.773,60.40573767]
[1771804896497,0.49025675,82.847,82.776,0.49436878]
[1771804896995,0.49025675,82.847,82.789,0.28432314]
[1771804897198,0.49025675,82.847,82.79,0.49436878]
[1771804902201,0.51124154,82.845,82.792,0.50956413]
[1771804904001,0.51124154,82.845,82.791,12.07860757]
[1771804904002,0.51124154,82.837,82.794,0.50956413]
[1771804905704,0.51124154,82.837,82.775,30.2022866]
[1771804905894,42.25114077,82.838,82.769,0.50956413]
[1771804905895,0.51124154,82.819,82.769,0.50956413]
[1771804906095,0.51124154,82.817,82.771,0.50956413]
[1771804906697,0.28432314,82.812,82.771,0.50956413]
[1771804906892,0.51124154,82.809,82.771,0.50956413]
[1771804907305,0.51124154,82.809,82.761,0.50956413]
[1771804907503,0.51124154,82.799,82.753,12.59364863]
[1771804908603,0.51124154,82.797,82.757,12.08351877]
[1771804909302,0.51124154,82.797,82.76,0.70956413]
[1771804910591,12.58911969,82.796,82.764,0.50956413]
[1771804910791,0.51124154,82.795,82.764,0.50956413]
[1771804914308,0.51124154,82.793,82.764,0.50956413]
[1771804915813,0.51124154,82.793,82.765,12.08240198]
[1771804916111,0.51124154,82.793,82.766,0.50956413]
[1771804918104,3.65409352,82.79,82.766,0.50956413]
[1771804919013,3.14285198,82.79,82.766,0.50956413]
[1771804919318,0.51124154,82.789,82.766,0.50956413]
[1771804920017,0.51124154,82.787,82.766,0.50956413]
[1771804920317,0.51124154,82.787,82.76,15.42587946]
[1771804920318,0.51124154,82.779,82.76,0.2]
[1771804920638,0.51124154,82.769,82.741,0.50956413]
[1771804921113,3.14285198,82.76,82.744,12.08539469]
[1771804921416,0.51124154,82.759,82.744,12.08539469]
[1771804923000,0.51124154,82.759,82.74,0.2]
[1771804923310,3.14285198,82.75,82.74,0.2]
[1771804923493,0.51124154,82.759,82.741,0.50956413]
[1771804923910,0.51124154,82.759,82.74,0.2]
[1771804924411,0.51124154,82.759,82.741,0.50956413]
[1771804925311,0.51124154,82.774,82.741,0.50956413]
[1771804925504,3.14285198,82.77,82.741,0.50956413]
[1771804926514,3.14285198,82.77,82.743,0.50956413]
[1771804927711,3.14285198,82.77,82.745,0.50956413]
[1771804928418,3.14285198,82.76,82.745,0.50956413]
[1771804929920,0.55950414,82.763,82.745,0.50956413]
[1771804930300,3.14285198,82.76,82.745,0.50956413]
[1771804930502,3.14285198,82.76,82.74,0.2]
[1771804930503,0.55950414,82.758,82.74,0.2]
[1771804930801,0.55950414,82.749,82.74,0.2]
[1771804930996,3.14285198,82.75,82.74,0.2]
[1771804931223,3.14285198,82.76,82.741,0.57074624]
[1771804932101,3.70235612,82.76,82.741,0.57074624]
[1771804932916,3.14285198,82.76,82.732,0.57074624]
[1771804933103,3.14285198,82.76,82.731,12.08736749]
[1771804933104,3.14285198,82.77,82.741,0.57074624]
[1771804933422,3.14430756,82.77,82.741,0.57074624]
[1771804933623,3.7038117,82.77,82.741,0.57074624]
[1771804933823,0.55950414,82.769,82.741,0.57074624]
[1771804938623,0.55950414,82.769,82.743,0.58709584]
[1771804940034,12.08035854,82.779,82.745,0.58709584]
[1771804940414,0.60195804,82.778,82.745,0.58709584]
[1771804941037,3.14430756,82.77,82.745,0.58709584]
[1771804941229,3.7462656,82.77,82.745,0.58709584]
[1771804941535,0.60195804,82.769,82.745,0.58709584]
[1771804945529,0.60195804,82.769,82.747,0.58709584]
[1771804945824,0.60195804,82.779,82.751,0.58709584]
[1771804946030,0.60195804,82.769,82.747,0.58709584]
[1771804946609,0.60195804,82.776,82.747,0.58709584]
[1771804948334,0.60195804,82.774,82.747,0.58709584]
[1771804950437,12.08123421,82.773,82.747,0.58709584]
[1771804950737,0.60195804,82.769,82.735,0.58709584]
[1771804951036,0.60195804,82.759,82.735,0.58709584]
[1771804958250,0.60195804,82.757,82.736,0.62277282]
[1771804961751,0.60195804,82.757,82.73,16.05444988]
[1771804961924,60.39790428,82.785,82.73,0.2]
[1771804961925,3.14430756,82.75,82.73,0.2]
[1771804962131,0.57487991,82.749,82.73,0.2]
[1771804962333,0.57487991,82.739,82.72,0.2]
[1771804962537,0.57487991,82.739,82.69,3.34430756]
[1771804962538,0.57487991,82.729,82.699,0.62277282]
[1771804962742,3.14430756,82.72,82.695,12.71531307]
[1771804963246,3.69383402,82.753,82.69,0.2]
[1771804963247,3.14430756,82.71,82.69,0.2]
[1771804963734,3.14430756,82.7,82.662,0.62277282]
[1771804964038,3.14430756,82.72,82.667,0.62277282]
[1771804964039,3.14430756,82.69,82.667,0.62277282]
[1771804964840,3.71918747,82.69,82.667,0.62277282]
[1771804965542,3.14430756,82.69,82.667,0.62277282]
[1771804965735,0.57487991,82.688,82.66,3.76708038]
[1771804966046,0.57487991,82.679,82.651,0.62277282]
[1771804966555,12.09350699,82.689,82.65,0.2]
[1771804966556,0.57487991,82.669,82.65,0.2]
[1771804967958,0.57487991,82.667,82.65,0.2]
[1771804968165,3.14430756,82.66,82.65,0.2]
[1771804968740,0.57487991,82.667,82.65,0.2]
[1771804971444,0.57487991,82.686,82.651,0.62277282]
[1771804971637,3.14430756,82.7,82.671,0.62277282]
[1771804971845,12.0914598,82.703,82.671,0.62277282]
[1771804972058,0.57487991,82.708,82.671,0.62277282]
[1771804972249,0.57487991,82.708,82.673,0.62277282]
[1771804974849,0.57487991,82.708,82.675,0.62277282]
[1771804976457,0.57487991,82.706,82.675,0.62277282]
[1771804976859,0.57487991,82.699,82.675,0.62277282]
[1771804977041,0.57487991,82.699,82.677,0.62277282]
[1771804978651,0.57487991,82.699,82.678,12.71788881]
[1771804979058,0.57487991,82.699,82.679,0.62277282]
[1771804980367,3.14430756,82.71,82.68,3.14430756]
[1771804980681,3.14430756,82.71,82.683,0.62277282]
[1771804981160,12.09058264,82.709,82.683,0.62277282]
[1771804981345,0.57487991,82.708,82.683,0.62277282]
[1771804981748,0.43061233,82.708,82.683,0.62277282]
[1771804982062,12.09058264,82.709,82.652,0.62277282]
[1771804982063,3.14430756,82.69,82.652,0.62277282]
[1771804982367,3.14430756,82.68,82.652,0.62277282]
[1771804982751,3.14430756,82.68,82.654,0.62277282]
[1771804982951,12.09444615,82.683,82.647,0.62277282]
[1771804982952,3.14430756,82.67,82.647,0.62277282]
[1771804983264,3.14430756,82.67,82.641,0.62277282]
[1771804983862,3.14430756,82.69,82.651,0.62277282]
[1771804984060,12.09233708,82.697,82.661,0.62277282]
[1771804984248,3.14430756,82.7,82.661,0.62277282]
[1771804984675,3.71918747,82.7,82.661,0.62277282]
[1771804984849,3.71918747,82.7,82.66,3.14430756]
[1771804984850,12.66692455,82.699,82.663,0.62277282]
[1771804985049,3.14430756,82.69,82.663,0.62277282]
[1771804986850,15.23620598,82.7,82.665,0.62277282]
[1771804988051,3.14430756,82.7,82.671,0.62277282]
[1771804988257,12.09092687,82.707,82.671,0.62277282]
[1771804988663,12.09092687,82.707,82.64,3.24430756]
[1771804988664,0.59679084,82.689,82.641,0.64227711]
[1771804988871,3.14430756,82.68,82.651,0.64227711]
[1771804989067,0.59679084,82.679,82.651,0.64227711]
[1771804989264,14.2402978,82.719,82.641,12.10053121]
[1771804989265,0.59679084,82.701,82.671,0.64227711]
[1771804990150,3.14430756,82.7,82.671,0.64227711]
[1771804990665,3.14430756,82.7,82.673,0.64227711]
[1771804992055,3.14430756,82.69,82.673,0.64227711]
[1771804992863,3.14430756,82.69,82.675,0.64227711]
[1771804993259,3.15019627,82.69,82.675,0.64227711]
[1771804996790,3.15019627,82.7,82.677,0.61287052]
[1771804998085,3.15019627,82.72,82.679,0.61287052]
[1771804998860,3.76558534,82.72,82.679,0.61287052]
[1771804999365,0.61538907,82.719,82.679,0.61287052]
[1771804999882,3.15019627,82.71,82.681,0.61287052]
[1771805000067,3.15019627,82.7,82.681,0.61287052]
[1771805003286,0.62159614,82.699,82.675,0.61287052]
[1771805003467,3.15019627,82.69,82.656,0.61287052]
[1771805003678,3.15019627,82.69,82.658,0.61287052]
[1771805005176,3.15019627,82.69,82.66,0.61287052]
[1771805005487,0.62159614,82.693,82.66,0.61287052]
[1771805006775,0.62752896,82.699,82.661,0.61287052]
[1771805008989,0.63039528,82.697,82.663,0.61287052]
[1771805011493,0.63039528,82.697,82.665,0.61287052]
[1771805013094,0.63039528,82.697,82.667,0.61287052]
[1771805013998,0.63729642,82.689,82.667,0.61287052]
[1771805017200,0.63729642,82.689,82.661,0.61287052]
[1771805019194,0.64506337,82.679,82.644,0.67563105]
[1771805019396,0.64506337,82.669,82.644,0.67563105]
[1771805019698,3.15019627,82.66,82.64,0.1]
[1771805020004,3.15019627,82.66,82.64,0.77563105]
[1771805020179,3.79650479,82.66,82.64,0.77563105]
[1771805022700,0.64994632,82.658,82.64,0.1]
[1771805022897,3.15019627,82.65,82.64,0.1]
[1771805024297,0.64994632,82.653,82.64,0.1]
[1771805025885,0.65344926,82.659,82.64,0.77563105]
[1771805029100,3.15019627,82.66,82.64,0.77563105]
[1771805029484,0.65684175,82.659,82.64,0.77563105]
[1771805029699,0.65684175,82.659,82.64,0.1]
[1771805032905,3.15019627,82.67,82.641,0.67563105]
[1771805033284,12.09643276,82.669,82.641,0.67563105]
[1771805034094,3.15019627,82.72,82.643,0.67563105]
[1771805034095,0.66224191,82.682,82.643,0.67563105]
[1771805034293,15.24502619,82.68,82.643,0.67563105]
[1771805034692,15.90829798,82.68,82.643,0.67563105]
[1771805035212,0.66327179,82.679,82.643,0.67563105]
[1771805036289,15.24502619,82.68,82.644,12.10009196]
[1771805036615,15.24502619,82.68,82.645,0.67563105]
[1771805038820,15.24502619,82.68,82.647,0.67563105]
[1771805040423,0.66831002,82.684,82.647,0.67563105]
[1771805040792,0.66928093,82.669,82.641,0.67563105]
[1771805041923,3.15019627,82.68,82.642,0.67563105]
[1771805042229,0.67024071,82.679,82.642,0.67563105]
[1771805044319,0.67024071,82.679,82.644,0.67563105]
[1771805046318,0.67024071,82.679,82.646,0.67563105]
[1771805046730,0.67110482,82.678,82.646,0.67563105]
[1771805050224,0.67834712,82.669,82.647,12.09965273]
[1771805050927,0.6792038,82.677,82.648,0.64040103]
[1771805053822,0.68001708,82.675,82.648,0.64040103]
[1771805054418,0.68001708,82.675,82.65,0.64040103]
[1771805056215,0.68001708,82.675,82.652,0.65919174]
[1771805057227,12.74180167,82.68,82.652,0.65919174]
[1771805057540,0.64694279,82.698,82.661,0.65919174]
[1771805059020,0.64694279,82.698,82.662,12.09745711]
[1771805059225,12.09233708,82.697,82.663,0.65919174]
[1771805059632,0.64694279,82.696,82.663,0.65919174]
[1771805061947,0.64694279,82.694,82.665,0.65919174]
[1771805064045,0.64694279,82.694,82.667,0.65919174]
[1771805065921,0.64694279,82.694,82.668,12.09657908]
[1771805066127,17.45017389,82.726,82.668,12.09657908]
[1771805066128,0.64694279,82.704,82.67,3.15111103]
[1771805066426,0.64694279,82.704,82.671,0.65919174]
[1771805066623,0.64694279,82.738,82.691,0.65919174]
[1771805066828,0.64694279,82.729,82.691,0.65919174]
[1771805068243,12.73474861,82.728,82.693,0.65919174]
[1771805068439,0.64694279,82.727,82.693,0.65919174]
[1771805069322,0.64694279,82.732,82.696,0.28432314]
[1771805069540,12.083862,82.755,82.692,12.09306825]
[1771805069541,0.64694279,82.719,82.692,12.09306825]
[1771805069845,0.64694279,82.709,82.692,12.09306825]
[1771805070428,0.64694279,82.709,82.685,0.65919174]
[1771805070429,0.64694279,82.709,82.686,12.75313751]
[1771805070758,0.64694279,82.709,82.687,0.65919174]
[1771805072654,0.64694279,82.709,82.683,12.75351485]
[1771805074458,0.64694279,82.709,82.684,0.65919174]
[1771805076852,0.64694279,82.709,82.685,12.09409203]
[1771805077055,0.64694279,82.709,82.686,0.65919174]
[1771805080543,0.64694279,82.709,82.687,12.78330958]
[1771805080743,0.64694279,82.709,82.688,0.68951008]
[1771805081237,0.68025479,82.707,82.688,0.68951008]
[1771805082241,12.0883773,82.725,82.69,0.68951008]
[1771805082448,0.68025479,82.724,82.69,0.68951008]
[1771805083652,0.68025479,82.724,82.692,0.68951008]
[1771805084039,0.68025479,82.747,82.694,0.68951008]
[1771805084238,0.68025479,82.747,82.701,0.68951008]
[1771805084439,0.68025479,82.739,82.701,0.68951008]
[1771805085857,12.08571697,82.743,82.711,0.68951008]
[1771805086250,0.68025479,82.742,82.711,0.68951008]
[1771805087153,0.68025479,82.739,82.712,0.68951008]
[1771805087849,3.15111103,82.73,82.706,0.68951008]
[1771805088036,3.15111103,82.73,82.693,0.68951008]
[1771805088037,0.68025479,82.729,82.693,0.68951008]
[1771805088237,0.68025479,82.719,82.693,0.68951008]
[1771805088448,0.68025479,82.709,82.687,0.68951008]
[1771805089450,0.68025479,82.718,82.689,0.68951008]
[1771805090747,0.68025479,82.718,82.691,0.68951008]
[1771805092463,0.68025479,82.718,82.693,0.68951008]
[1771805092961,12.76871221,82.724,82.693,0.68951008]
[1771805094260,0.68025479,82.729,82.693,0.68951008]
[1771805094439,0.68025479,82.729,82.701,0.68951008]
[1771805094642,12.08719399,82.733,82.701,0.68951008]
[1771805095447,12.08569433,82.743,82.701,0.68951008]
[1771805095658,0.68025479,82.742,82.701,0.68951008]
[1771805096440,0.68025479,82.742,82.7,3.15111103]
[1771805096441,0.68025479,82.742,82.703,0.68951008]
[1771805097465,0.68025479,82.739,82.703,0.68951008]
[1771805098766,0.68025479,82.739,82.705,0.68951008]
[1771805100142,0.68025479,82.739,82.707,0.68951008]
[1771805100569,3.15111103,82.73,82.707,0.68951008]
[1771805100773,0.68025479,82.719,82.67,3.15111103]
[1771805100950,0.68025479,82.719,82.68,3.15111103]
[1771805102162,0.68025479,82.709,82.671,12.09614012]
[1771805102868,0.68025479,82.709,82.672,0.68951008]
[1771805104255,0.68025479,82.707,82.674,0.68951008]
[1771805106075,0.68025479,82.728,82.681,0.68951008]
[1771805107771,0.68025479,82.728,82.691,0.68951008]
[1771805107970,0.68025479,82.726,82.693,0.68951008]
[1771805108661,0.66306222,82.719,82.68,0.67825174]
[1771805108859,0.66306222,82.709,82.68,12.77305805]
[1771805109881,0.66306222,82.709,82.674,12.09559883]
[1771805110181,0.66306222,82.707,82.674,0.67825174]
[1771805111971,0.66306222,82.707,82.664,30.2426061]
[1771805111972,0.66306222,82.705,82.676,0.67825174]
[1771805112182,0.66306222,82.705,82.675,12.09555488]
[1771805112183,0.66306222,82.722,82.681,0.67825174]
[1771805112479,0.66306222,82.719,82.681,0.67825174]
[1771805112977,0.14216157,82.718,82.681,0.67825174]
[1771805113181,0.66306222,82.709,82.675,12.09555488]
[1771805113883,0.66306222,82.709,82.675,12.77380662]
[1771805114185,0.66306222,82.707,82.676,0.67825174]
[1771805115367,0.66306222,82.705,82.676,0.67825174]
[1771805117482,0.66306222,82.705,82.661,30.24400866]
[1771805117483,0.68667286,82.703,82.661,12.09760346]
[1771805117791,0.68667286,82.689,82.65,3.14887984]
[1771805118089,42.3195976,82.704,82.661,0.65504263]
[1771805118694,42.3195976,82.704,82.671,0.65504263]
[1771805119189,3.14887984,82.7,82.671,0.65504263]
[1771805120090,0.68667286,82.699,82.671,0.65504263]
[1771805120291,0.68667286,82.699,82.672,12.0959938]
[1771805120489,0.68667286,82.699,82.673,0.65504263]
[1771805121292,0.68667286,82.697,82.663,0.65504263]
[1771805122378,0.68667286,82.695,82.663,0.65504263]
[1771805122582,0.68667286,82.695,82.664,12.09716442]
[1771805123175,0.68667286,82.695,82.664,12.75220705]
[1771805124202,0.68667286,82.689,82.65,3.14887984]
[1771805124498,0.68667286,82.677,82.648,0.65504263]
[1771805126895,0.68667286,82.669,82.648,0.65504263]
[1771805127592,0.68667286,82.659,82.64,0.1]
[1771805129793,3.14887984,82.68,82.64,0.1]
[1771805129794,0.68667286,82.68,82.641,0.65504263]
[1771805129992,0.68667286,82.685,82.651,0.65504263]
[1771805131084,12.09338002,82.69,82.661,0.65504263]
[1771805132898,0.68667286,82.689,82.661,0.65504263]
[1771805133402,12.09365325,82.688,82.661,0.65504263]
[1771805134004,0.68667286,82.687,82.661,0.65504263]
[1771805134179,0.68667286,82.687,82.655,0.65504263]
[1771805134384,0.68667286,82.687,82.655,12.75348247]
[1771805134594,3.14887984,82.68,82.655,12.75348247]
[1771805134900,0.68667286,82.679,82.655,12.75348247]
[1771805136801,0.68667286,82.687,82.656,0.65504263]
[1771805141504,12.09266373,82.695,82.661,0.68595069]
[1771805141692,12.09266373,82.695,82.671,0.68595069]
[1771805142304,12.09266373,82.695,82.664,0.68595069]
[1771805142305,0.68260071,82.694,82.664,0.68595069]
[1771805143411,0.68260071,82.689,82.664,0.68595069]
[1771805145694,0.68260071,82.689,82.665,12.09701808]
[1771805146513,0.68260071,82.688,82.665,12.09701808]
[1771805146706,0.68260071,82.688,82.658,0.68595069]
[1771805148313,0.68260071,82.686,82.658,0.68595069]
[1771805149719,0.68260071,82.684,82.658,0.68595069]
[1771805151716,0.68260071,82.682,82.658,0.68595069]
[1771805152723,3.14887984,82.67,82.646,12.78563679]
[1771805152901,0.68260071,82.669,82.647,0.68595069]
[1771805154528,0.68260071,82.669,82.646,12.0996861]
[1771805154529,3.14887984,82.67,82.649,0.68595069]
[1771805154704,0.68260071,82.675,82.649,0.68595069]
[1771805155422,0.68260071,82.673,82.649,0.68595069]
[1771805162328,12.09418759,82.685,82.651,0.68595069]
[1771805162625,0.68260071,82.694,82.67,3.14887984]
[1771805162831,0.68260071,82.694,82.671,0.68595069]
[1771805163130,0.68260071,82.698,82.671,0.68595069]
[1771805163930,12.77493779,82.697,82.671,0.68595069]
[1771805165938,0.68260071,82.696,82.671,0.68595069]
[1771805169332,3.69383402,82.716,82.64,3.24887984]
[1771805169333,0.70565064,82.715,82.681,0.71962107]
[1771805169512,12.08985177,82.714,82.681,0.71962107]
[1771805172833,12.08985177,82.714,82.683,0.71962107]
[1771805173951,12.08985177,82.714,82.685,0.71962107]
[1771805174749,0.70565064,82.713,82.685,0.71962107]
[1771805175049,3.14887984,82.71,82.685,0.71962107]
[1771805176222,3.14887984,82.71,82.68,3.14887984]
[1771805176223,3.81878393,82.71,82.687,0.73178976]
[1771805176754,0.66990409,82.709,82.687,0.73178976]
[1771805177623,0.66990409,82.709,82.681,12.09467713]
[1771805177824,0.66990409,82.689,82.647,0.73178976]
[1771805178054,0.66990409,82.677,82.647,0.73178976]
[1771805179435,12.09540858,82.676,82.647,0.73178976]
[1771805179731,30.23350087,82.69,82.64,0.1]
[1771805179732,12.09447309,82.683,82.649,0.73178976]
[1771805180057,3.81852875,82.68,82.649,0.73178976]
[1771805180558,0.66990409,82.679,82.649,0.73178976]
[1771805181651,0.66990409,82.679,82.65,12.09921355]
[1771805181835,0.66990409,82.679,82.651,0.73178976]
[1771805182034,3.14862466,82.68,82.651,0.73178976]
[1771805182233,3.81852875,82.68,82.651,0.73178976]
[1771805186848,0.66990409,82.68,82.652,12.09892077]
[1771805187031,15.24052308,82.7,82.661,0.73178976]
[1771805187233,0.66990409,82.704,82.661,0.73178976]
[1771805187455,12.0914598,82.703,82.661,0.73178976]
[1771805187636,0.66990409,82.702,82.661,0.73178976]
[1771805188556,0.66990409,82.699,82.661,0.73178976]
[1771805189056,3.14862466,82.72,82.663,0.73178976]
[1771805189057,0.66990409,82.689,82.663,0.73178976]
[1771805191557,0.66990409,82.695,82.664,12.09716442]
[1771805191733,0.66990409,82.695,82.665,0.73178976]
[1771805192446,0.66990409,82.689,82.665,0.73178976]
[1771805194655,0.66990409,82.687,82.652,12.09877558]
[1771805196451,0.66990409,82.685,82.652,0.73178976]
[1771805198540,0.6953063,82.679,82.653,0.71848818]
[1771805199053,0.6953063,82.679,82.643,12.10017993]
[1771805199054,0.6953063,82.679,82.644,0.71848818]
[1771805201765,0.6953063,82.677,82.644,0.71848818]
[1771805204865,0.6953063,82.675,82.646,0.71848818]
[1771805207666,0.6953063,82.682,82.648,0.71848818]
[1771805207848,0.6953063,82.689,82.648,0.71848818]
[1771805208047,0.6953063,82.689,82.651,0.71848818]
[1771805208551,0.6953063,82.679,82.651,0.71848818]
[1771805208846,0.6953063,82.678,82.652,0.71848818]
[1771805211260,0.6953063,82.676,82.652,0.71848818]
[1771805213571,0.6953063,82.674,82.652,0.71848818]
[1771805214149,0.6953063,82.669,82.643,0.71848818]
[1771805215076,0.6953063,82.659,82.64,0.1]
[1771805215375,0.6953063,82.659,82.641,0.71848818]
[1771805219477,0.6953063,82.667,82.641,0.71848818]
[1771805220677,0.6953063,82.667,82.64,0.1]
[1771805220678,12.09204464,82.699,82.651,0.71848818]
[1771805220910,0.6953063,82.695,82.651,0.71848818]
[1771805221269,0.28432314,82.703,82.642,42.35134677]
[1771805221270,0.6953063,82.709,82.671,0.71848818]
[1771805221472,0.6953063,82.716,82.671,0.71848818]
[1771805222882,0.6953063,82.714,82.673,0.71848818]
[1771805223482,0.6953063,82.709,82.673,0.71848818]
[1771805224792,0.6953063,82.709,82.674,12.09570118]
[1771805225094,0.6953063,82.709,82.675,0.71848818]
[1771805225586,0.6953063,82.714,82.675,0.71848818]
[1771805229889,0.71490596,82.712,82.677,0.70582386]
[1771805231181,0.71490596,82.718,82.681,0.70582386]
[1771805231681,30.21857135,82.731,82.678,12.09511599]
[1771805231682,0.71490596,82.724,82.691,0.70582386]
[1771805233190,0.71490596,82.722,82.692,0.70582386]
[1771805239493,0.71490596,82.722,82.694,0.66796667]
[1771805240600,0.73185142,82.719,82.694,0.66796667]
[1771805244581,0.73185142,82.719,82.696,0.66796667]